lending/lending_fUSD_20240112
["ID","MTS","AMOUNT","RATE_DAILY","PERIOD"]
[311429295,1705095038703,-5707.10907528,0.00022398,2]
[311429296,1705095038762,-535584.37352752,0.00022398,2]
[311429297,1705095038772,-66617.3973,0.00022399,2]
[311429298,1705095038781,-245000.0,0.00022399,2]
[311429299,1705095038790,-165.39553542,0.000224,2]
[311429300,1705095038799,-880.54898364,0.000224,2]
[311429301,1705095038809,-1162.93858912,0.00022471,2]
[311429302,1705095038819,-154.65,0.00022486,2]
[311429303,1705095038828,-1576.33,0.00022486,2]
[311429304,1705095038837,-7061.87,0.00022486,2]
[311429305,1705095038846,-1755.61,0.00022486,2]
[311429306,1705095038856,-499.99,0.00022486,2]
[311429307,1705095038865,-152.37,0.00022488,2]
[311429308,1705095038881,-485.66442729,0.00022497,2]
[311429309,1705095038890,-269.41774634,0.00022497,2]
[311429310,1705095038900,-2303.07507198,0.00022497,2]
[311429311,1705095038910,-156.1273939,0.00022497,2]
[311429312,1705095038920,-155.0,0.00022497,2]
[311429313,1705095038930,-177.98118366,0.00022497,2]
[311429314,1705095038940,-220.55180604,0.00022497,2]
[311429315,1705095038949,-239.70963111,0.00022497,2]
[311429316,1705095038959,-155.11407524,0.00022497,2]
[311429317,1705095038968,-273.55023891,0.00022497,2]
[311429318,1705095038977,-158.01260679,0.00022497,2]
[311429319,1705095038987,-155.25678155,0.00022497,2]
[311429320,1705095038996,-155.0,0.00022497,2]
[311429321,1705095039008,-155.23250803,0.00022497,2]
[311429322,1705095039017,-201.45980625,0.00022497,2]
[311429323,1705095039027,-155.0,0.00022497,2]
[311429324,1705095039037,-176.70805274,0.00022497,2]
[311429326,1705095039047,-155.22276629,0.00022497,2]
[311429327,1705095039058,-155.0,0.00022497,2]
[311429328,1705095039068,-155.04439657,0.00022497,2]
[311429329,1705095039077,-155.0,0.00022497,2]
[311429330,1705095039087,-1042.57746309,0.00022497,2]
[311429331,1705095039098,-488.79444827,0.00022497,2]
[311429332,1705095039107,-1000.0,0.00022498,2]
[311429333,1705095039117,-1057.63711347,0.00022498,2]
[311429334,1705095039134,-406.72239281,0.00022498,2]
[311429335,1705095039144,-4480.63733448,0.00022498,2]
[311429336,1705095039154,-162.3,0.00022498,2]
[311429337,1705095039164,-504924.79064027,0.000225,2]
[311429338,1705095039174,-129206.37916907,0.000225,2]
[311429339,1705095039184,-1384.49580434,0.00022511,2]
[311429340,1705095039193,-150.0,0.00022515,2]
[311429341,1705095039203,-880.5489836,0.00022525,2]
[311429342,1705095039212,-150.0,0.00022548,2]
[311429343,1705095039222,-1162.93858912,0.00022557,2]
[311429344,1705095039231,-1001.67,0.00022563,2]
[311429345,1705095039240,-160.26930652,0.00022588,2]
[311429346,1705095039250,-150.0,0.00022589,2]
[311429347,1705095039259,-176.09,0.00022596,2]
[311429348,1705095039269,-234.81,0.00022604,2]
[311429349,1705095039278,-155.0,0.0002261,2]
[311429350,1705095039289,-797.73,0.0002263,2]
[311429351,1705095039299,-152.37,0.0002263,2]
[311429352,1705095039308,-1162.93858912,0.00022642,2]
[311429353,1705095039319,-160.26930652,0.0002265,2]
[311429354,1705095039328,-880.5489836,0.0002265,2]
[311429355,1705095039338,-154.65,0.00022652,2]
[311429356,1705095039348,-370.49104507,0.00022699,2]
[311429357,1705095039357,-160.26930652,0.00022713,2]
[311429358,1705095039366,-162.3,0.00022715,2]
[311429359,1705095039379,-234.81,0.00022719,2]
[311429360,1705095039389,-1162.93858912,0.00022728,2]
[311429361,1705095039398,-150.0,0.00022729,2]
[311429362,1705095039408,-150.0,0.00022729,2]
[311429363,1705095039417,-150.0,0.0002274,2]
[311429364,1705095039428,-27439.53033821,0.00022742,2]
[311429365,1705095039437,-6042.61868307,0.00022742,2]
[311429366,1705095039447,-150.0,0.00022743,2]
[311429367,1705095039457,-500.0,0.00022744,2]
[311429368,1705095039467,-150.0,0.00022747,2]
[311429369,1705095039477,-300.0,0.00022756,2]
[311429370,1705095039486,-150.0,0.00022757,2]
[311429371,1705095039495,-2195.46384832,0.00022761,2]
[311429372,1705095039505,-150.0,0.00022764,2]
[311429373,1705095039514,-150.0,0.00022768,2]
[311429374,1705095039524,-150.0,0.00022768,2]
[311429375,1705095039534,-150.0,0.00022768,2]
[311429376,1705095039543,-326.4371442,0.0002277,2]
[311429377,1705095039553,-150.0,0.0002277,2]
[311429378,1705095039563,-152.3068,0.0002277,2]
[311429379,1705095039573,-2321.62134245,0.0002277,2]
[311429380,1705095039584,-1500.0,0.00022772,2]
[311429381,1705095039594,-152.37,0.00022772,2]
[311429382,1705095039603,-160.26930652,0.00022775,2]
[311429383,1705095039613,-880.5489836,0.00022775,2]
[311429384,1705095039627,-150.0,0.00022781,2]
[311429385,1705095039638,-2988.75473902,0.00022784,2]
[311429386,1705095039648,-1985.8222691,0.00022784,2]
[311429387,1705095039657,-323.08701136,0.00022784,2]
[311429388,1705095039666,-150.0,0.00022785,2]
[311429389,1705095039677,-1500.0,0.00022786,2]
[311429390,1705095039687,-150.0,0.00022796,2]
[311429391,1705095039696,-744.19261684,0.00022799,2]
[311429392,1705095039705,-115722.8974,0.00022799,2]
[311429393,1705095039715,-416.3411,0.00022799,2]
[311429394,1705095039724,-539.5003,0.00022799,2]
[311429395,1705095039735,-370.49104507,0.000228,2]
[311429396,1705095039745,-1000.0,0.000228,2]
[311429397,1705095039754,-500.0,0.000228,2]
[311429398,1705095039764,-150.0,0.000228,2]
[311429399,1705095039773,-1500.0,0.00022803,2]
[311429400,1705095039783,-150.0,0.00022803,2]
[311429401,1705095039792,-150.0,0.00022804,2]
[311429402,1705095039801,-150.0,0.00022806,2]
[311429403,1705095039811,-150.0,0.00022809,2]
[311429404,1705095039820,-1500.0,0.00022811,2]
[311429405,1705095039829,-748.01837762,0.00022811,2]
[311429406,1705095039839,-1162.93858912,0.00022814,2]
[311429407,1705095039848,-1500.0,0.00022817,2]
[311429408,1705095039857,-154.65,0.00022819,2]
[311429409,1705095039867,-150.0,0.0002282,2]
[311429410,1705095039880,-27439.53033819,0.00022821,2]
[311429411,1705095039890,-6042.61868306,0.00022821,2]
[311429412,1705095039899,-150.0,0.00022825,2]
[311429413,1705095039909,-150.0,0.00022825,2]
[311429414,1705095039918,-2195.46384832,0.00022831,2]
[311429415,1705095039928,-234.81,0.00022835,2]
[311429416,1705095039937,-150.0,0.00022837,2]
[311429417,1705095039946,-160.26930652,0.00022838,2]
[311429418,1705095039956,-150.0,0.00022841,2]
[311429419,1705095039965,-207.56937403,0.00022841,2]
[311429420,1705095039974,-2988.754739,0.00022842,2]
[311429421,1705095039983,-1985.82226908,0.00022842,2]
[311429422,1705095039993,-323.08701134,0.00022842,2]
[311429423,1705095040004,-5800.0,0.00022849,2]
[311429424,1705095040015,-5800.0,0.00022858,2]
[311429425,1705095040025,-150.0,0.00022861,2]
[311429426,1705095040033,-150.0,0.00022863,2]
[311429427,1705095040043,-150.0,0.00022865,2]
[311429428,1705095040052,-5800.0,0.00022866,2]
[311429429,1705095040062,-5800.0,0.00022875,2]
[311429430,1705095040071,-1500.0,0.00022877,2]
[311429431,1705095040081,-150.0,0.00022882,2]
[311429432,1705095040090,-5800.0,0.00022883,2]
[311429433,1705095040100,-150.0,0.00022884,2]
[311429434,1705095040110,-1500.0,0.00022888,2]
[311429435,1705095040121,-150.0,0.00022889,2]
[311429436,1705095040131,-150.0,0.00022891,2]
[311429437,1705095040140,-1500.0,0.00022891,2]
[311429438,1705095040149,-58000.0,0.00022891,2]
[311429439,1705095040159,-5800.0,0.00022892,2]
[311429440,1705095040168,-1500.0,0.00022893,2]
[311429441,1705095040178,-150.0,0.00022894,2]
[311429442,1705095040187,-2500.0,0.00022897,2]
[311429443,1705095040197,-163.7690261,0.00022898,2]
[311429444,1705095040206,-1366.24536935,0.00022898,2]
[311429445,1705095040215,-1000.0,0.00022898,2]
[311429446,1705095040225,-1000.0,0.00022898,2]
[311429447,1705095040234,-1000.0,0.00022898,2]
[311429448,1705095040244,-1000.0,0.00022898,2]
[311429449,1705095040253,-1000.0,0.00022898,2]
[311429450,1705095040263,-1000.0,0.00022898,2]
[311429451,1705095040273,-1000.0,0.00022898,2]
[311429452,1705095040282,-1000.0,0.00022898,2]
[311429453,1705095040292,-1000.0,0.00022898,2]
[311429454,1705095040302,-1000.0,0.00022898,2]
[311429455,1705095040311,-1000.0,0.00022898,2]
[311429456,1705095040321,-1000.0,0.00022898,2]
[311429457,1705095040330,-1000.0,0.00022898,2]
[311429458,1705095040339,-1000.0,0.00022898,2]
[311429459,1705095040349,-1000.0,0.00022898,2]
[311429460,1705095040359,-1000.0,0.00022898,2]
[311429461,1705095040371,-825.8404659,0.00022898,2]
[311429462,1705095040380,-150.0,0.00022899,2]
[311429463,1705095040390,-5803.47276065,0.00022899,2]
[311429464,1705095040399,-5803.47276065,0.00022899,2]
[311429465,1705095040409,-5803.47276065,0.00022899,2]
[311429466,1705095040419,-5803.47276065,0.00022899,2]
[311429467,1705095040428,-5803.47276065,0.00022899,2]
[311429468,1705095040438,-5803.47276065,0.000229,2]
[311429469,1705095040448,-5803.47276065,0.000229,2]
[311429470,1705095040457,-5803.47276065,0.000229,2]
[311429471,1705095040467,-5803.47276065,0.000229,2]
[311429472,1705095040476,-5803.47276065,0.000229,2]
[311429473,1705095040486,-5803.47276065,0.000229,2]
[311429474,1705095040495,-5800.0,0.000229,2]
[311429475,1705095040505,-160.26930652,0.000229,2]
[311429476,1705095040514,-58000.0,0.000229,2]
[311429477,1705095040523,-250.0,0.000229,2]
[311429478,1705095040533,-55555.0,0.000229,2]
[311429479,1705095040543,-207093.71,0.000229,2]
[311429480,1705095040553,-165.39553542,0.000229,2]
[311429481,1705095040562,-160.0,0.000229,2]
[311429482,1705095040572,-5800.0,0.000229,2]
[311429483,1705095040581,-880.5489836,0.000229,2]
[311429484,1705095040591,-370.49104507,0.000229,2]
[311429485,1705095040601,-1162.93858912,0.000229,2]
[311429486,1705095040611,-2988.754739,0.000229,2]
[311429487,1705095040622,-1985.82226908,0.000229,2]
[311429488,1705095040632,-323.08701134,0.000229,2]
[311429489,1705095040642,-2195.46384832,0.000229,2]
[311429490,1705095040651,-27439.53033819,0.000229,2]
[311429491,1705095040661,-6042.61868306,0.000229,2]
[311429492,1705095040670,-41330.0,0.00022904,2]
[311429493,1705095040680,-150.0,0.00022905,2]
[311429494,1705095040689,-150.0,0.00022906,2]
[311429495,1705095040698,-150.0,0.00022908,2]
[311429496,1705095040708,-152.37,0.00022914,2]
[311429497,1705095040717,-162.3,0.00022931,2]
[311429498,1705095040726,-150.0,0.00022932,2]
[311429499,1705095040735,-150.0,0.00022936,2]
[311429500,1705095040745,-201.54,0.00022938,2]
[311429501,1705095040754,-300.0,0.0002294,2]
[311429502,1705095040763,-1500.0,0.0002294,2]
[311429503,1705095040773,-234.81,0.0002295,2]
[311429504,1705095040783,-150.0,0.0002295,2]
[311429505,1705095040792,-150.0,0.0002295,2]
[311429507,1705095040801,-150.0,0.00022965,2]
[311429508,1705095040811,-150.0,0.00022973,2]
[311429509,1705095040820,-150.0,0.00022975,2]
[311429510,1705095040830,-150.0,0.00022975,2]
[311429511,1705095041032,-150.0,0.0002298,2]
[311429512,1705095041055,-150.0,0.00022982,2]
[311429513,1705095041065,-150.0,0.00022984,2]
[311429514,1705095041075,-1500.0,0.00022985,2]
[311429515,1705095041084,-154.65,0.00022985,2]
[311429516,1705095041094,-150.0,0.00022987,2]
[311429517,1705095041103,-150.0,0.00022987,2]
[311429518,1705095041113,-150.0,0.00022987,2]
[311429519,1705095041124,-748.01837762,0.0002299,2]
[311429520,1705095041133,-150.0,0.00022991,2]
[311429521,1705095041142,-150.0,0.00022993,2]
[311429522,1705095041152,-522.36940647,0.00022995,2]
[311429523,1705095041162,-254.70267151,0.00022995,2]
[311429524,1705095041172,-155.0,0.00022995,2]
[311429525,1705095041181,-221.32103436,0.00022995,2]
[311429526,1705095041190,-262.45719523,0.00022995,2]
[311429527,1705095041200,-242.20345528,0.00022996,2]
[311429528,1705095041209,-332.78229753,0.00022996,2]
[311429529,1705095041218,-533.009588,0.00022996,2]
[311429530,1705095041227,-376.11195413,0.00022996,2]
[311429531,1705095041237,-1645.13521506,0.00022997,2]
[311429532,1705095041246,-426.27292837,0.00022997,2]
[311429533,1705095041255,-9730.48317814,0.00022997,2]
[311429534,1705095041264,-1110.27338864,0.00022997,2]
[311429535,1705095041273,-3612.04475606,0.00022997,2]
[311429536,1705095041282,-42164.89708814,0.00022997,2]
[311429537,1705095041291,-211.53084027,0.00022998,2]
[311429538,1705095041300,-155.67810569,0.00022998,2]
[311429539,1705095041310,-566.08021087,0.00022998,2]
[311429540,1705095041319,-879.57453601,0.00022999,2]
[311429541,1705095041328,-1745.26384323,0.00022999,2]
[311429542,1705095041337,-150.0,0.00022999,2]
[311429543,1705095041346,-150.0,0.00022999,2]
[311429544,1705095041355,-150.0,0.00022999,2]
[311429545,1705095041365,-150.0,0.00022999,2]
[311429546,1705095041377,-150.0,0.00022999,2]
[311429547,1705095041387,-150.0,0.00022999,2]
[311429548,1705095041396,-150.0,0.00022999,2]
[311429549,1705095041406,-150.0,0.00022999,2]
[311429550,1705095041415,-150.0,0.00022999,2]
[311429551,1705095041425,-150.0,0.00022999,2]
[311429552,1705095041434,-150.0,0.00022999,2]
[311429553,1705095041444,-13807406.37025668,0.00023,2]
[311429554,1705095041455,-933.03463795,0.00023,2]
[311429555,1705095041465,-433.47911193,0.00023,2]
[311429556,1705095041475,-995339.74705779,0.00023,2]
[311429574,1705095042043,-947473.52537884,0.00023,2]
[311429575,1705095042054,-589298.65650691,0.00023,2]
[311429576,1705095042082,-150.0,0.00022845,2]
[311429577,1705095042091,-31683.13417534,0.00023,2]
[311429578,1705095043146,-150.0,0.00022726,2]
[311429579,1705095043156,-150.0,0.00022726,2]
[311429586,1705095043393,-150.0,0.00022728,2]
[311429587,1705095043403,-150.0,0.00022747,2]
[311429589,1705095043412,-150.0,0.00022752,2]
[311429591,1705095043422,-150.0,0.00022758,2]
[311429592,1705095043431,-150.0,0.00022762,2]
[311429593,1705095043440,-150.0,0.00022764,2]
[311429594,1705095043449,-150.0,0.00022782,2]
[311429595,1705095043459,-150.0,0.00022804,2]
[311429596,1705095043468,-150.0,0.0002281,2]
[311429597,1705095043477,-150.0,0.0002281,2]
[311429598,1705095043486,-150.0,0.00022834,2]
[311429599,1705095043495,-150.0,0.0002284,2]
[311429600,1705095043504,-150.0,0.00022841,2]
[311429601,1705095043514,-150.0,0.00022861,2]
[311429602,1705095043523,-150.0,0.00022863,2]
[311429603,1705095043532,-150.0,0.00022865,2]
[311429604,1705095043541,-221.00264978,0.00022874,2]
[311429605,1705095043550,-150.0,0.00022878,2]
[311429606,1705095043560,-150.0,0.00022884,2]
[311429607,1705095043569,-150.0,0.00022884,2]
[311429608,1705095043579,-150.0,0.00022893,2]
[311429609,1705095043588,-150.0,0.00022907,2]
[311429610,1705095043597,-150.0,0.00022908,2]
[311429611,1705095043607,-150.0,0.00022909,2]
[311429612,1705095043616,-150.0,0.00022917,2]
[311429613,1705095043628,-150.0,0.00022938,2]
[311429614,1705095043637,-150.0,0.00022938,2]
[311429615,1705095043646,-150.0,0.0002294,2]
[311429616,1705095043656,-150.0,0.00022947,2]
[311429617,1705095043665,-150.0,0.00022948,2]
[311429618,1705095043674,-150.0,0.00022949,2]
[311429619,1705095043683,-150.0,0.0002295,2]
[311429620,1705095043692,-150.0,0.0002295,2]
[311429621,1705095043701,-150.0,0.00022951,2]
[311429622,1705095043710,-150.0,0.00022958,2]
[311429623,1705095043719,-150.0,0.00022968,2]
[311429624,1705095043728,-150.0,0.00022968,2]
[311429625,1705095043738,-150.0,0.00022973,2]
[311429626,1705095043747,-150.0,0.00022983,2]
[311429627,1705095043756,-150.0,0.00022986,2]
[311429628,1705095043765,-150.0,0.00022994,2]
[311429629,1705095043774,-150.0,0.00022996,2]
[311429630,1705095043782,-106398.95751949,0.00023,2]
[311429631,1705095043794,-342.42643174,0.00023,2]
[311429632,1705095043805,-819.1372375,0.00023,2]
[311429633,1705095043816,-381.91328504,0.00023,2]
[311429634,1705095043836,-2461.71784991,0.00023,2]
[311429635,1705095043873,-1.28864945,0.00023,2]
[311429636,1705095043905,-310.08111749,0.00023,2]
[311429637,1705095045917,-1254.14327998,0.00023,2]
[311429638,1705095045928,-1292.76814614,0.00023,2]
[311429639,1705095045939,-348.18,0.00023,2]
[311429640,1705095046022,500.0,0.00022298,2]
[311429645,1705095046809,-271.3493897,0.000224,2]
[311429646,1705095046832,-928.6506103,0.000224,2]
[311429647,1705095046841,-5800.0,0.00022841,2]
[311429648,1705095046850,-711.03878208,0.00023,2]
[311429649,1705095046886,-651.06340159,0.00023,2]
[311429651,1705095046897,-4037.06041062,0.00023,2]
[311429653,1705095046909,-4686.48020824,0.00023,2]
[311429654,1705095046919,-3369.26849374,0.00023,2]
[311429655,1705095046931,-1531.95071034,0.00023,2]
[311429656,1705095046946,-19333.38890991,0.00023,2]
[311429657,1705095046957,-878.9393226,0.00023,2]
[311429658,1705095046969,-4954.85995634,0.00023,2]
[311429659,1705095047748,-2841.94706059,0.00022396,2]
[311429660,1705095047758,-822.27535186,0.00022397,2]
[311429661,1705095047769,-1195.82773548,0.00022397,2]
[311429662,1705095047778,-27963.25303669,0.00023,2]
[311429663,1705095048940,-261.60174887,0.00023,2]
[311429664,1705095048951,-1798.51344613,0.00023,2]
[311429665,1705095048963,-48471.0481314,0.00023,2]
[311429666,1705095048972,-323.84,0.00023,2]
[311429667,1705095048981,-234.81,0.00023065,2]
[311429668,1705095048990,-150.0,0.00023096,2]
[311429669,1705095049000,-355.0,0.00023111,2]
[311429670,1705095049009,-162.31,0.00023139,2]
[311429671,1705095049021,-176.09,0.00023144,2]
[311429672,1705095049030,-162.3,0.00023147,2]
[311429673,1705095049039,-154.65,0.00023152,2]
[311429674,1705095049048,-1384.49580434,0.0002316,2]
[311429675,1705095049057,-234.81,0.0002318,2]
[311429676,1705095049067,-164.62,0.00023199,2]
[311429677,1705095049077,-355.0,0.00023224,2]
[311429678,1705095049087,-403.96217287,0.00023288,2]
[311429679,1705095049096,-399.60242127,0.00023288,2]
[311429680,1705095049106,-172.52081547,0.00023288,2]
[311429681,1705095049115,-500.0,0.00023288,2]
[311429682,1705095049126,-500.0,0.00023288,2]
[311429683,1705095049135,-500.0,0.00023288,2]
[311429684,1705095049144,-500.0,0.00023288,2]
[311429685,1705095049154,-500.0,0.00023288,2]
[311429686,1705095049163,-500.0,0.00023288,2]
[311429687,1705095049172,-500.0,0.00023288,2]
[311429688,1705095049181,-500.0,0.00023288,2]
[311429689,1705095049190,-500.0,0.00023288,2]
[311429690,1705095049199,-500.0,0.00023288,2]
[311429691,1705095049208,-500.0,0.00023288,2]
[311429692,1705095049217,-500.0,0.00023288,2]
[311429693,1705095049226,-500.0,0.00023288,2]
[311429694,1705095049235,-323.40798546,0.00023288,2]
[311429695,1705095049244,-161.58486914,0.00023288,2]
[311429696,1705095049253,-500.0,0.00023288,2]
[311429697,1705095049262,-340.42728727,0.00023288,2]
[311429698,1705095049271,-500.0,0.00023288,2]
[311429699,1705095049280,-500.0,0.00023288,2]
[311429700,1705095049289,-500.0,0.00023288,2]
[311429701,1705095049298,-500.0,0.00023288,2]
[311429702,1705095049307,-500.0,0.00023288,2]
[311429703,1705095049316,-500.0,0.00023288,2]
[311429704,1705095049325,-402.54856943,0.00023288,2]
[311429705,1705095049333,-234.81,0.00023296,2]
[311429706,1705095049342,-154.65,0.00023318,2]
[311429707,1705095049351,-355.0,0.00023336,2]
[311429708,1705095049361,-162.3,0.00023364,2]
[311429709,1705095049372,-234.81,0.00023411,2]
[311429710,1705095049381,-177.5,0.0002343,2]
[311429711,1705095049389,-355.0,0.00023448,2]
[311429712,1705095049398,-154.65,0.00023485,2]
[311429713,1705095049407,-234.81,0.00023526,2]
[311429714,1705095049416,-1001.67,0.00023541,2]
[311429715,1705095049426,-162.3,0.0002358,2]
[311429716,1705095049435,-234.81,0.00023642,2]
[311429717,1705095049445,-151.06375353,0.00023644,2]
[311429718,1705095049455,-154.65,0.00023651,2]
[311429719,1705095049464,-63.90614046,0.00023692,2]
[311429720,1705095049476,-112.18385954,0.00023692,2]
[311429721,1705095049485,-164.22222496,0.00023757,2]
[311429722,1705095049500,-70.58777504,0.00023757,2]
[311429723,1705095049509,-162.3,0.00023796,2]
[311429724,1705095049519,-154.65,0.00023818,2]
[311429725,1705095049696,-234.81,0.00023872,2]
[311429726,1705095049711,-234.81,0.00023988,2]
[311429727,1705095049722,-430.99724455,0.00024,2]
[311429728,1705095049733,-200.89664823,0.00024,2]
[311429729,1705095049743,-1234.80735982,0.00024,3]
[311429730,1705095049763,-65.19264018,0.00024,3]
[311429731,1705095049772,-552.73904551,0.00024,2]
[311429732,1705095049799,-1036.5622905,0.00024,2]
[311429733,1705095049811,-2062.27271774,0.00024,2]
[311429734,1705095049822,-404.42594625,0.00024,2]
[311429735,1705095049832,-935.34107401,0.00024,2]
[311429736,1705095049848,-289.038755,0.00024,2]
[311429737,1705095049859,-2971.93533652,0.00024,2]
[311429738,1705095049964,-668.75659888,0.00024,2]
[311429739,1705095050697,1072.83596802,0.00022242,2]
[311429740,1705095077945,1000.0,0.00022298,2]
[311429741,1705095089552,683.93,0.00019651,2]
[311429742,1705095089961,683.93,0.00021915,2]
[311429743,1705095133234,2500.0,0.00022298,2]
[311429744,1705095134851,250.0,0.00021569,2]
[311429745,1705095206405,875.62,0.00021991,2]
[311429746,1705095278128,159.64996417,0.00022352,2]
[311429747,1705095299573,350.0,0.00022,3]
[311429748,1705095326733,1864.26,0.00021549,2]
[311429749,1705095334082,302.4,0.00021803,2]
[311429750,1705095411439,168.15,0.00021764,2]
[311429751,1705095430058,3005.51,0.00021798,2]
[311429752,1705095449113,176.09,0.00021891,2]
[311429753,1705095449245,252.25,0.00021815,2]
[311429754,1705095495044,-2304.07734728,0.00022395,2]
[311429755,1705095495066,-2612.76863363,0.00022396,2]
[311429756,1705095495938,3141.15835728,0.00022395,2]
[311429757,1705095508723,315.79945622,0.00022354,2]
[311429758,1705095515269,155.81,0.0002177,2]
[311429759,1705095515509,155.81,0.00022012,2]
[311429760,1705095515983,155.81,0.00022254,2]
[311429761,1705095519866,156.54,0.00021907,2]
[311429762,1705095525167,169.44,0.00021744,2]
[311429763,1705095534200,615.53,0.0001988,2]
[311429764,1705095535146,615.53,0.00022144,2]
[311429765,1705095542492,300.0,0.00022297,2]
[311429766,1705095579876,250.0,0.00021761,2]
[311429767,1705095644288,817.24,0.00021781,2]
[311429768,1705095663051,151.40113,0.00022,3]
[311429769,1705095664294,151.40113,0.00022,3]
[311429770,1705095665319,151.40113,0.00022,3]
[311429771,1705095668041,151.40113,0.00022,3]
[311429772,1705095724068,205.0,0.00022161,2]
[311429773,1705095789853,758.08,0.00021758,2]
[311429774,1705095809518,159.64996414,0.00022351,2]
[311429775,1705095828375,200.0,0.00021758,2]
[311429776,1705095875245,155.4279219,0.00022354,2]
[311429777,1705095876420,2500.0,0.00022353,2]
[311429778,1705095882760,162.31,0.00021985,2]
[311429779,1705095956701,155.57286791,0.00020206,2]
[311429780,1705095964779,205.0,0.00022161,2]
[311429781,1705096010793,259.16,0.00021758,2]
[311429782,1705096012346,1000.0,0.00022353,2]
[311429783,1705096017628,577.35,0.0001985,2]
[311429784,1705096017839,577.35,0.00022114,2]
[311429785,1705096036274,169.41,0.00021727,2]
[311429786,1705096050097,155.42792185,0.00022354,2]
[311429787,1705096063610,218.0188968,0.000215,2]
[311429788,1705096191457,883.71,0.00021743,2]
[311429823,1705096233617,-477.3122,0.000224,2]
[311429824,1705096233627,-734.18,0.00022448,2]
[311429825,1705096233639,-730.22,0.0002245,2]
[311429826,1705096233650,-300.0,0.0002245,2]
[311429827,1705096233660,-139.7878,0.0002245,2]
[311429828,1705096233677,-10.2122,0.0002245,2]
[311429829,1705096233686,-704.48692125,0.0002245,2]
[311429830,1705096233715,-821.43142574,0.0002245,2]
[311429831,1705096233727,-543.9595844,0.0002245,2]
[311429832,1705096233741,-734.47,0.00022451,2]
[311429833,1705096233752,-1238.47041555,0.00022451,2]
[311429834,1705096233763,-503.15432782,0.00022451,2]
[311429835,1705096233775,-334.50747262,0.00022451,2]
[311429836,1705096233787,-1003.8665897,0.00022451,2]
[311429837,1705096233836,-2090.57556099,0.00022451,2]
[311429838,1705096233845,-953.10962121,0.00022451,2]
[311429839,1705096233855,-1517.03521779,0.00022451,2]
[311429840,1705096234420,-1062.38997499,0.00022451,2]
[311429841,1705096234437,-220.57105711,0.00022451,2]
[311429842,1705096234447,-229.48307305,0.00022451,2]
[311429843,1705096234456,-254.96667626,0.00022451,2]
[311429844,1705096234466,-179.994148,0.00022451,2]
[311429845,1705096234476,-363.66366697,0.00022451,2]
[311429846,1705096234485,-155.21565838,0.00022451,2]
[311429847,1705096234494,-1000.0,0.00022452,2]
[311429848,1705096234504,-172.91134041,0.00022452,2]
[311429849,1705096234514,-1948.12084907,0.00022452,2]
[311429850,1705096234523,-1057.63711347,0.00022453,2]
[311429851,1705096234532,-1906.3,0.00022453,2]
[311429852,1705096234542,-150.99,0.00022453,2]
[311429853,1705096234551,-9999.99,0.00022453,2]
[311429854,1705096234762,-499.99,0.00022453,2]
[311429855,1705096234772,-10481.06,0.00022453,2]
[311429856,1705096234781,-1310.51,0.00022453,2]
[311429857,1705096234790,-215775.24090572,0.00022453,2]
[311429858,1705096234838,-5768.39902246,0.00022453,2]
[311429859,1705096234849,-2305.55027749,0.00022453,2]
[311429860,1705096234864,-517.82129114,0.00022453,2]
[311429861,1705096234875,-1071.62439854,0.00022453,2]